fUSD/lending_fUSD_20250204
["ID","MTS","AMOUNT","RATE_DAILY","PERIOD"]
[351656575,1738692636119,-500.0,9.999e-05,2]
[351656576,1738692636129,-500.0,9.999e-05,2]
[351656577,1738692636139,-500.0,9.999e-05,2]
[351656578,1738692636150,-530.46072396,9.999e-05,2]
[351656579,1738692636161,-500.0,9.999e-05,2]
[351656580,1738692636173,-605.88,9.999e-05,2]
[351656581,1738692636183,-500.0,9.999e-05,2]
[351656582,1738692636193,-500.0,9.999e-05,2]
[351656583,1738692636203,-500.0,9.999e-05,2]
[351656584,1738692636214,-513.14172486,9.999e-05,2]
[351656585,1738692636225,-500.0,9.999e-05,2]
[351656586,1738692636236,-500.0,9.999e-05,2]
[351656587,1738692636246,-500.0,9.999e-05,2]
[351656588,1738692636257,-500.0,9.999e-05,2]
[351656589,1738692636267,-500.0,9.999e-05,2]
[351656590,1738692636278,-500.0,9.999e-05,2]
[351656591,1738692636288,-500.0,9.999e-05,2]
[351656592,1738692636299,-500.0,9.999e-05,2]
[351656593,1738692636309,-500.0,9.999e-05,2]
[351656594,1738692636320,-500.0,9.999e-05,2]
[351656595,1738692636330,-186.59,9.999e-05,2]
[351656596,1738692636340,-610.5,9.999e-05,2]
[351656597,1738692636351,-500.0,9.999e-05,2]
[351656598,1738692636361,-500.0,9.999e-05,2]
[351656599,1738692636371,-500.0,9.999e-05,2]
[351656600,1738692636381,-500.0,9.999e-05,2]
[351656601,1738692636391,-500.0,9.999e-05,2]
[351656602,1738692636401,-500.0,9.999e-05,2]
[351656603,1738692636413,-569.45418841,9.999e-05,2]
[351656604,1738692636423,-500.0,9.999e-05,2]
[351656605,1738692636433,-500.0,9.999e-05,2]
[351656606,1738692636444,-500.0,9.999e-05,2]
[351656607,1738692636454,-500.0,9.999e-05,2]
[351656608,1738692636464,-500.0,9.999e-05,2]
[351656609,1738692636475,-500.0,9.999e-05,2]
[351656610,1738692636485,-500.0,9.999e-05,2]
[351656611,1738692636495,-604.54,9.999e-05,2]
[351656612,1738692636506,-500.0,9.999e-05,2]
[351656613,1738692636516,-500.0,9.999e-05,2]
[351656614,1738692636526,-919.24,9.999e-05,2]
[351656615,1738692636537,-500.0,9.999e-05,2]
[351656616,1738692636550,-500.0,9.999e-05,2]
[351656617,1738692636560,-500.0,9.999e-05,2]
[351656618,1738692636571,-500.0,9.999e-05,2]
[351656619,1738692636582,-500.0,9.999e-05,2]
[351656620,1738692636592,-500.0,9.999e-05,2]
[351656621,1738692636603,-2414.84,9.999e-05,2]
[351656622,1738692636613,-500.0,9.999e-05,2]
[351656623,1738692636623,-534.17158239,9.999e-05,2]
[351656624,1738692636634,-500.0,9.999e-05,2]
[351656625,1738692636644,-500.0,9.999e-05,2]
[351656626,1738692636654,-500.0,9.999e-05,2]
[351656627,1738692636665,-500.0,9.999e-05,2]
[351656628,1738692636675,-500.0,9.999e-05,2]
[351656629,1738692636686,-500.0,9.999e-05,2]
[351656630,1738692636696,-500.0,9.999e-05,2]
[351656631,1738692636706,-226.99,9.999e-05,2]
[351656632,1738692636716,-500.0,9.999e-05,2]
[351656633,1738692636727,-500.0,9.999e-05,2]
[351656634,1738692636737,-500.0,9.999e-05,2]
[351656635,1738692636747,-500.0,9.999e-05,2]
[351656636,1738692636757,-500.0,9.999e-05,2]
[351656637,1738692636767,-500.0,9.999e-05,2]
[351656638,1738692636778,-500.0,9.999e-05,2]
[351656639,1738692636788,-500.0,9.999e-05,2]
[351656640,1738692637125,-500.0,9.999e-05,2]
[351656641,1738692637135,-500.0,9.999e-05,2]
[351656642,1738692637145,-500.0,9.999e-05,2]
[351656643,1738692637155,-500.0,9.999e-05,2]
[351656644,1738692637163,-500.0,9.999e-05,2]
[351656645,1738692637172,-500.0,9.999e-05,2]
[351656646,1738692637182,-500.0,9.999e-05,2]
[351656647,1738692637191,-500.0,9.999e-05,2]
[351656648,1738692637201,-500.0,9.999e-05,2]
[351656649,1738692637210,-500.0,9.999e-05,2]
[351656650,1738692637219,-500.0,9.999e-05,2]
[351656651,1738692637228,-500.0,9.999e-05,2]
[351656652,1738692637237,-500.0,9.999e-05,2]
[351656653,1738692637246,-500.0,9.999e-05,2]
[351656654,1738692637255,-500.0,9.999e-05,2]
[351656655,1738692637264,-500.0,9.999e-05,2]
[351656656,1738692637274,-500.0,9.999e-05,2]
[351656657,1738692637283,-500.0,9.999e-05,2]
[351656658,1738692637292,-500.0,9.999e-05,2]
[351656659,1738692637300,-502.10140045,9.999e-05,2]
[351656660,1738692637310,-500.0,9.999e-05,2]
[351656661,1738692637319,-500.0,9.999e-05,2]
[351656662,1738692637327,-500.0,9.999e-05,2]
[351656663,1738692637336,-500.0,9.999e-05,2]
[351656664,1738692637346,-500.0,9.999e-05,2]
[351656665,1738692637355,-500.0,9.999e-05,2]
[351656666,1738692637366,-1165.38,9.999e-05,2]
[351656667,1738692637375,-500.0,9.999e-05,2]
[351656668,1738692637387,-500.0,9.999e-05,2]
[351656669,1738692637397,-1016.48,9.999e-05,2]
[351656670,1738692637408,-500.0,9.999e-05,2]
[351656671,1738692637419,-267.56,9.999e-05,2]
[351656672,1738692637430,-500.0,9.999e-05,2]
[351656673,1738692637439,-500.0,9.999e-05,2]
[351656674,1738692637451,-500.0,9.999e-05,2]
[351656675,1738692637460,-500.0,9.999e-05,2]
[351656676,1738692637470,-594.62,9.999e-05,2]
[351656677,1738692637480,-500.0,9.999e-05,2]
[351656678,1738692637489,-500.0,9.999e-05,2]
[351656679,1738692637499,-1000.0,9.999e-05,2]
[351656680,1738692637509,-936.12,9.999e-05,2]
[351656681,1738692637518,-500.0,9.999e-05,2]
[351656682,1738692637529,-550.26150799,9.999e-05,2]
[351656683,1738692637538,-500.0,9.999e-05,2]
[351656684,1738692637547,-500.0,9.999e-05,2]
[351656685,1738692637557,-394.4,9.999e-05,2]
[351656686,1738692637566,-500.0,9.999e-05,2]
[351656687,1738692637575,-500.0,9.999e-05,2]
[351656688,1738692637584,-500.0,9.999e-05,2]
[351656689,1738692637594,-500.0,9.999e-05,2]
[351656690,1738692637605,-500.0,9.999e-05,2]
[351656691,1738692637614,-500.0,9.999e-05,2]
[351656692,1738692637624,-500.0,9.999e-05,2]
[351656693,1738692637634,-762.39,9.999e-05,2]
[351656694,1738692637644,-500.0,9.999e-05,2]
[351656695,1738692637654,-435.18,9.999e-05,2]
[351656696,1738692637663,-500.0,9.999e-05,2]
[351656697,1738692637672,-500.0,9.999e-05,2]
[351656698,1738692637682,-514.48,9.999e-05,2]
[351656699,1738692637692,-500.0,9.999e-05,2]
[351656700,1738692637702,-500.0,9.999e-05,2]
[351656701,1738692637711,-532.68,9.999e-05,2]
[351656702,1738692637721,-500.0,9.999e-05,2]
[351656703,1738692637732,-500.0,9.999e-05,2]
[351656704,1738692637743,-500.0,9.999e-05,2]
[351656705,1738692637752,-500.0,9.999e-05,2]
[351656706,1738692637761,-684.72,9.999e-05,2]
[351656707,1738692637770,-310.25,9.999e-05,2]
[351656708,1738692637780,-500.0,9.999e-05,2]
[351656709,1738692637790,-215.03,9.999e-05,2]
[351656710,1738692637800,-500.0,9.999e-05,2]
[351656711,1738692637810,-500.0,9.999e-05,2]
[351656712,1738692637819,-500.0,9.999e-05,2]
[351656714,1738692637828,-500.0,9.999e-05,2]
[351656715,1738692637838,-500.0,9.999e-05,2]
[351656716,1738692637848,-463.39145713,9.999e-05,2]
[351656717,1738692637858,-500.0,9.999e-05,2]
[351656718,1738692637869,-500.0,9.999e-05,2]
[351656719,1738692637878,-500.0,9.999e-05,2]
[351656720,1738692637887,-500.0,9.999e-05,2]
[351656721,1738692637897,-500.0,9.999e-05,2]
[351656722,1738692637907,-500.0,9.999e-05,2]
[351656723,1738692637918,-500.0,9.999e-05,2]
[351656724,1738692637927,-502.0,0.0001,2]
[351656725,1738692637936,-268262.52371665,0.0001,2]
[351656727,1738692637946,-2001.0,0.0001,2]
[351656728,1738692637955,-110007.71199444,0.0001,2]
[351656729,1738692637964,-431289.72486604,0.0001,2]
[351656730,1738692638011,-1791.19941019,0.0001,2]
[351656731,1738692638025,-320.34913565,0.0001,2]
[351656732,1738692638037,-32734.25746574,0.0001,2]
[351656733,1738692638049,-56744.45646487,0.0001,2]
[351656735,1738692638508,-500.0,9.998e-05,2]
[351656736,1738692638518,-5035.40034938,0.0001,2]
[351656737,1738692638529,-387.36940556,0.0001,2]
[351656738,1738692638540,-412.07026839,0.0001,2]
[351656739,1738692638552,-35079.38563577,0.0001,2]
[351656740,1738692638570,-2380.87167549,0.0001,2]
[351656741,1738692638588,-384.47,0.0001,2]
[351656743,1738692640132,-500.0,9.998e-05,2]
[351656744,1738692640142,-1568.63438604,0.0001,2]
[351656745,1738692640155,-2395.98,0.0001,2]
[351656746,1738692640167,-512.27802841,0.0001,2]
[351656747,1738692640192,-6022.09514032,0.0001,2]
[351656748,1738692640203,-113217.52552006,0.0001,2]
[351656749,1738692640259,-4455.42,0.0001,2]
[351656750,1738692640271,-385.2265525,0.0001,2]
[351656751,1738692640283,-2263.44705197,0.0001,2]
[351656752,1738692640317,-432.3319025,0.0001,2]
[351656753,1738692640379,-964.89959459,0.0001,2]
[351657006,1738692643159,-605.9,9.998e-05,2]
[351657008,1738692643169,-500.0,9.998e-05,2]
[351657010,1738692643178,-500.0,9.999e-05,2]
[351657012,1738692643190,-1605.67967567,0.0001,2]
[351657018,1738692643239,-967.70000095,0.0001,2]
[351657020,1738692643250,-258.91099997,0.0001,2]
[351657022,1738692643262,-84617.53211533,0.0001,2]
[351657024,1738692643271,-1670.96091962,0.0001,2]
[351657026,1738692643280,-184115.16077428,0.0001,2]
[351657029,1738692643292,-5341.5358595,0.0001,2]
[351657039,1738692643386,-13851.94429052,0.0001,2]
[351657041,1738692643398,-7396.9281297,0.0001,2]
[351657043,1738692643410,-1800.0,0.0001,2]
[351657045,1738692643421,-14922.78850001,0.0001,2]
[351657050,1738692643452,-64098.61968183,0.0001,2]
[351657052,1738692643461,-6602.14473228,0.0001,2]
[351657053,1738692643471,-25000.0,0.0001,2]
[351657056,1738692643480,-931.64913187,0.0001,2]
[351657058,1738692643490,-151.0,0.0001,2]
[351657059,1738692643499,-151.0,0.0001,2]
[351657061,1738692643508,-151.0,0.0001,2]
[351657063,1738692643518,-151.0,0.0001,2]
[351657065,1738692643527,-151.0,0.0001,2]
[351657068,1738692643538,-151.0,0.0001,2]
[351657070,1738692643550,-151.0,0.0001,2]
[351657072,1738692643559,-151.0,0.0001,2]
[351657074,1738692643569,-151.0,0.0001,2]
[351657076,1738692643579,-151.0,0.0001,2]
[351657078,1738692643588,-151.0,0.0001,2]
[351657105,1738692643789,-151.0,0.0001,2]
[351657107,1738692643807,-151.0,0.0001,2]
[351657109,1738692643817,-151.0,0.0001,2]
[351657111,1738692643827,-151.0,0.0001,2]
[351657113,1738692643837,-151.0,0.0001,2]
[351657115,1738692643847,-151.0,0.0001,2]
[351657117,1738692643856,-151.0,0.0001,2]
[351657119,1738692643866,-151.0,0.0001,2]
[351657121,1738692643876,-151.0,0.0001,2]
[351657123,1738692643885,-151.0,0.0001,2]
[351657125,1738692643895,-151.0,0.0001,2]
[351657127,1738692643904,-151.0,0.0001,2]
[351657129,1738692643915,-151.0,0.0001,2]
[351657131,1738692643924,-151.0,0.0001,2]
[351657133,1738692643933,-151.0,0.0001,2]
[351657135,1738692643943,-151.0,0.0001,2]
[351657137,1738692643952,-151.0,0.0001,2]
[351657139,1738692643962,-151.0,0.0001,2]
[351657141,1738692643972,-151.0,0.0001,2]
[351657143,1738692643981,-151.0,0.0001,2]
[351657145,1738692643991,-151.0,0.0001,2]
[351657147,1738692644000,-151.0,0.0001,2]
[351657149,1738692644009,-151.0,0.0001,2]
[351657151,1738692644018,-151.0,0.0001,2]
[351657153,1738692644028,-151.0,0.0001,2]
[351657155,1738692644037,-151.0,0.0001,2]
[351657157,1738692644049,-151.0,0.0001,2]
[351657159,1738692644060,-151.0,0.0001,2]
[351657161,1738692644070,-151.0,0.0001,2]
[351657163,1738692644079,-151.0,0.0001,2]
[351657166,1738692644094,-151.0,0.0001,2]
[351657168,1738692644104,-151.0,0.0001,2]
[351657169,1738692644117,-151.0,0.0001,2]
[351657170,1738692644127,-151.0,0.0001,2]
[351657171,1738692644136,-151.0,0.0001,2]
[351657172,1738692644147,-151.0,0.0001,2]
[351657173,1738692644156,-151.0,0.0001,2]
[351657174,1738692644166,-151.0,0.0001,2]
[351657175,1738692644175,-151.0,0.0001,2]
[351657176,1738692644185,-151.0,0.0001,2]
[351657177,1738692644195,-151.0,0.0001,2]
[351657178,1738692644205,-151.0,0.0001,2]
[351657179,1738692644215,-151.0,0.0001,2]
[351657180,1738692644224,-151.0,0.0001,2]
[351657181,1738692644234,-151.0,0.0001,2]
[351657182,1738692644244,-151.0,0.0001,2]
[351657183,1738692644254,-151.0,0.0001,2]
[351657184,1738692644264,-151.0,0.0001,2]
[351657185,1738692644273,-151.0,0.0001,2]
[351657186,1738692644283,-151.0,0.0001,2]
[351657188,1738692644293,-151.0,0.0001,2]
[351657190,1738692644306,-151.0,0.0001,2]
[351657192,1738692644315,-151.0,0.0001,2]
[351657194,1738692644325,-151.0,0.0001,2]
[351657195,1738692644334,-151.0,0.0001,2]
[351657197,1738692644343,-151.0,0.0001,2]
[351657199,1738692644353,-151.0,0.0001,2]
[351657202,1738692644363,-151.0,0.0001,2]
[351657203,1738692644372,-151.0,0.0001,2]
[351657205,1738692644382,-151.0,0.0001,2]
[351657206,1738692644391,-151.0,0.0001,2]
[351657207,1738692644401,-151.0,0.0001,2]
[351657208,1738692644410,-151.0,0.0001,2]
[351657209,1738692644420,-151.0,0.0001,2]
[351657210,1738692644430,-151.0,0.0001,2]
[351657211,1738692644440,-151.0,0.0001,2]
[351657212,1738692644450,-151.0,0.0001,2]
[351657213,1738692644460,-151.0,0.0001,2]
[351657214,1738692644469,-151.0,0.0001,2]
[351657215,1738692644479,-151.0,0.0001,2]
[351657216,1738692644489,-151.0,0.0001,2]
[351657217,1738692644499,-151.0,0.0001,2]
[351657218,1738692644509,-151.0,0.0001,2]
[351657219,1738692644518,-151.0,0.0001,2]
[351657220,1738692644527,-151.0,0.0001,2]
[351657221,1738692644537,-151.0,0.0001,2]
[351657222,1738692644548,-151.0,0.0001,2]
[351657223,1738692644558,-151.0,0.0001,2]
[351657224,1738692644567,-151.0,0.0001,2]
[351657225,1738692644577,-151.0,0.0001,2]
[351657226,1738692644587,-151.0,0.0001,2]
[351657227,1738692644597,-151.0,0.0001,2]
[351657228,1738692644607,-151.0,0.0001,2]
[351657229,1738692644616,-151.0,0.0001,2]
[351657230,1738692644626,-151.0,0.0001,2]
[351657231,1738692644636,-151.0,0.0001,2]
[351657232,1738692644645,-151.0,0.0001,2]
[351657234,1738692644656,-151.0,0.0001,2]
[351657236,1738692644666,-151.0,0.0001,2]
[351657239,1738692644675,-200.0,0.0001,2]
[351657241,1738692644685,-281.24405441,0.0001,2]
[351657242,1738692644694,-200.0,0.0001,2]
[351657243,1738692644703,-635.56270013,0.0001,2]
[351657244,1738692644711,-1292.18164775,0.0001,2]
[351657245,1738692644720,-200.0,0.0001,2]
[351657246,1738692644729,-4000.0,0.0001,2]
[351657247,1738692644738,-1002.96965617,0.0001,2]
[351657248,1738692644748,-200.0,0.0001,2]
[351657249,1738692644757,-281.24405436,0.00010049,2]
[351657250,1738692644766,-150.0,0.00010064,2]
[351657251,1738692644775,-638.0,0.00010064,2]
[351657252,1738692644784,-1826.0,0.00010064,2]
[351657253,1738692644793,-870.591,0.00010064,2]
[351657254,1738692644805,-326.544,0.00010064,2]
[351657255,1738692644814,-150.0,0.00010064,2]
[351657256,1738692644823,-1002.96965609,0.00010095,2]
[351657258,1738692644832,-200.0,0.000101,2]
[351657260,1738692644841,-200.0,0.000101,2]
[351657262,1738692644851,-200.0,0.000101,2]
[351657264,1738692644861,-200.0,0.000101,2]
[351657266,1738692644870,-635.5627001,0.00010127,2]
[351657268,1738692644880,-212.8,0.00010135,2]
[351657270,1738692644890,-400.91,0.00010135,2]
[351657272,1738692644899,-210.67,0.00010135,2]
[351657274,1738692644908,-500.0,0.00010135,2]
[351657276,1738692644918,-500.0,0.00010135,2]
[351657278,1738692644928,-221.15,0.00010135,2]
[351657280,1738692644937,-307.71,0.00010135,2]
[351657281,1738692644947,-303.27,0.00010135,2]
[351657283,1738692644957,-197.96,0.00010135,2]
[351657285,1738692644967,-405.03174087,0.00010135,2]
[351657287,1738692644976,-500.0,0.00010135,2]
[351657289,1738692644985,-500.0,0.00010135,2]
[351657291,1738692644995,-500.0,0.00010135,2]
[351657293,1738692645004,-500.0,0.00010135,2]
[351657295,1738692645014,-500.0,0.00010135,2]
[351657297,1738692645024,-500.0,0.00010135,2]
[351657299,1738692645034,-500.0,0.00010135,2]
[351657301,1738692645043,-500.0,0.00010135,2]
[351657303,1738692645056,-500.0,0.00010135,2]
[351657305,1738692645066,-158.49,0.00010135,2]
[351657307,1738692645075,-338.09,0.00010135,2]
[351657309,1738692645084,-500.0,0.00010135,2]
[351657311,1738692645094,-337.45,0.00010135,2]
[351657313,1738692645104,-500.0,0.00010135,2]
[351657315,1738692645116,-497.3,0.00010135,2]
[351657317,1738692645126,-500.0,0.00010135,2]
[351657319,1738692645135,-500.0,0.00010135,2]
[351657321,1738692645145,-500.0,0.00010135,2]
[351657323,1738692645157,-500.0,0.00010135,2]
[351657325,1738692645166,-634.496518,0.00010135,2]
[351657327,1738692645178,-334.52,0.00010135,2]
[351657329,1738692645187,-500.0,0.00010135,2]
[351657331,1738692645197,-355.74,0.00010135,2]
[351657333,1738692645206,-500.0,0.00010135,2]
[351657335,1738692645215,-500.0,0.00010135,2]
[351657337,1738692645225,-184.7,0.00010135,2]
[351657339,1738692645234,-500.0,0.00010135,2]
[351657341,1738692645244,-500.0,0.00010135,2]
[351657343,1738692645253,-563.800411,0.00010135,2]
[351657345,1738692645263,-500.0,0.00010135,2]
[351657347,1738692645272,-500.0,0.00010135,2]
[351657349,1738692645281,-500.0,0.00010135,2]
[351657351,1738692645291,-154.63,0.00010135,2]
[351657353,1738692645302,-311.2,0.00010135,2]
[351657355,1738692645311,-242.13,0.00010135,2]
[351657357,1738692645320,-500.0,0.00010135,2]
[351657359,1738692645330,-500.0,0.00010135,2]
[351657361,1738692645339,-500.0,0.00010135,2]
[351657363,1738692645349,-213.02,0.00010135,2]
[351657365,1738692645359,-500.0,0.00010135,2]
[351657367,1738692645369,-500.0,0.00010135,2]
[351657369,1738692645379,-500.0,0.00010135,2]
[351657371,1738692645388,-500.0,0.00010135,2]
[351657373,1738692645397,-376.74,0.00010135,2]
[351657375,1738692645406,-216.72,0.00010135,2]
[351657377,1738692645416,-500.0,0.00010135,2]
[351657379,1738692645425,-500.0,0.00010135,2]
[351657381,1738692645434,-500.0,0.00010135,2]
[351657383,1738692645443,-556.21,0.00010135,2]
[351657385,1738692645452,-500.0,0.00010135,2]
[351657387,1738692645462,-500.0,0.00010135,2]
[351657389,1738692645471,-500.0,0.00010135,2]
[351657391,1738692645481,-500.0,0.00010135,2]
[351657393,1738692645490,-500.0,0.00010135,2]
[351657395,1738692645500,-500.0,0.00010135,2]
[351657397,1738692645509,-500.0,0.00010135,2]
[351657399,1738692645519,-500.0,0.00010135,2]
[351657401,1738692645529,-500.0,0.00010135,2]
[351657403,1738692645539,-500.0,0.00010135,2]
[351657405,1738692645548,-500.0,0.00010135,2]
[351657407,1738692645558,-575.71,0.00010135,2]
[351657409,1738692645567,-587.45,0.00010135,2]
[351657411,1738692645576,-500.0,0.00010135,2]
[351657413,1738692645586,-246.46,0.00010135,2]
[351657415,1738692645597,-500.0,0.00010135,2]
[351657417,1738692645606,-500.0,0.00010135,2]
[351657419,1738692645615,-500.0,0.00010135,2]
[351657421,1738692645624,-500.0,0.00010135,2]
[351657423,1738692645633,-1116.97,0.00010135,2]
[351657425,1738692645643,-702.39,0.00010135,2]
[351657427,1738692645653,-1009.36,0.00010135,2]
[351657429,1738692645663,-500.0,0.00010135,2]
[351657431,1738692645672,-1278.5,0.00010135,2]
[351657433,1738692645681,-500.0,0.00010135,2]
[351657435,1738692645691,-500.0,0.00010135,2]
[351657437,1738692645700,-500.0,0.00010135,2]
[351657439,1738692645710,-500.0,0.00010135,2]
[351657441,1738692645720,-595.35,0.00010135,2]
[351657443,1738692645729,-500.0,0.00010135,2]
[351657445,1738692645739,-500.0,0.00010135,2]
[351657447,1738692645748,-500.0,0.00010135,2]
[351657449,1738692645757,-500.0,0.00010135,2]
[351657451,1738692645766,-500.0,0.00010135,2]
[351657453,1738692645776,-500.0,0.00010135,2]
[351657455,1738692645785,-565.68,0.00010135,2]
[351657457,1738692645794,-558.34,0.00010135,2]
[351657459,1738692645805,-500.0,0.00010135,2]
[351657461,1738692645815,-500.0,0.00010135,2]
[351657463,1738692645824,-1644.19,0.00010135,2]
[351657465,1738692645835,-500.0,0.00010135,2]
[351657467,1738692645844,-500.0,0.00010135,2]
[351657469,1738692645853,-500.0,0.00010135,2]
[351657471,1738692645863,-500.0,0.00010135,2]
[351657473,1738692645872,-500.0,0.00010135,2]
[351657475,1738692645881,-820.11,0.00010135,2]
[351657477,1738692645891,-777.25,0.00010135,2]
[351657479,1738692645901,-500.0,0.00010135,2]
[351657481,1738692645911,-500.0,0.00010135,2]
[351657483,1738692645921,-592.33,0.00010135,2]
[351657485,1738692645930,-500.0,0.00010135,2]
[351657487,1738692645940,-500.0,0.00010135,2]
[351657489,1738692645951,-500.0,0.00010135,2]
[351657490,1738692645961,-500.0,0.00010135,2]
[351657491,1738692645971,-1217.55,0.00010135,2]
[351657492,1738692645980,-500.0,0.00010135,2]
[351657493,1738692645990,-500.0,0.00010135,2]
[351657494,1738692645999,-635.95,0.00010135,2]
[351657495,1738692646009,-500.0,0.00010135,2]
[351657496,1738692646020,-500.0,0.00010135,2]
[351657497,1738692646030,-514.39,0.00010135,2]
[351657498,1738692646040,-500.0,0.00010135,2]
[351657499,1738692646056,-500.0,0.00010135,2]
[351657500,1738692646065,-500.0,0.00010135,2]
[351657501,1738692646075,-500.0,0.00010135,2]
[351657502,1738692646084,-1100.63,0.00010135,2]
[351657503,1738692646093,-500.0,0.00010135,2]
[351657504,1738692646103,-514.24,0.00010135,2]
[351657505,1738692646115,-500.0,0.00010135,2]
[351657506,1738692646124,-500.0,0.00010135,2]
[351657508,1738692646133,-500.0,0.00010135,2]
[351657510,1738692646143,-500.0,0.00010135,2]
[351657511,1738692646152,-500.0,0.00010135,2]
[351657512,1738692646161,-605.9,0.00010135,2]
[351657513,1738692646171,-500.0,0.00010135,2]
[351657514,1738692646181,-305.55,0.00010136,2]
[351657515,1738692646192,-473.05,0.00010136,2]
[351657516,1738692646202,-500.0,0.00010136,2]
[351657517,1738692646211,-349.7,0.00010136,2]
[351657518,1738692646221,-271.42281652,0.00010136,2]
[351657519,1738692646230,-500.0,0.00010136,2]
[351657520,1738692646284,-500.0,0.00010136,2]
[351657521,1738692646294,-459.35,0.00010136,2]
[351657522,1738692646305,-500.0,0.00010136,2]
[351657523,1738692646315,-500.0,0.00010136,2]
[351657524,1738692646325,-500.0,0.00010136,2]
[351657525,1738692646335,-500.0,0.00010136,2]
[351657526,1738692646345,-435.8,0.00010136,2]
[351657527,1738692646354,-500.0,0.00010136,2]
[351657528,1738692646364,-186.32,0.00010136,2]
[351657529,1738692646373,-305.89,0.00010136,2]
[351657530,1738692646383,-500.0,0.00010136,2]
[351657531,1738692646392,-500.0,0.00010136,2]
[351657532,1738692646402,-192.57,0.00010136,2]
[351657533,1738692646412,-500.0,0.00010136,2]
[351657534,1738692646422,-500.0,0.00010136,2]
[351657535,1738692646432,-273.4,0.00010136,2]
[351657536,1738692646442,-500.0,0.00010136,2]
[351657537,1738692646452,-500.0,0.00010136,2]
[351657538,1738692646461,-500.0,0.00010136,2]
[351657539,1738692646470,-427.38,0.00010136,2]
[351657540,1738692646480,-222.24,0.00010136,2]
[351657541,1738692646490,-500.0,0.00010136,2]
[351657542,1738692646499,-500.0,0.00010136,2]
[351657543,1738692646509,-215.3,0.00010136,2]
[351657544,1738692646518,-500.0,0.00010136,2]
[351657545,1738692646528,-151.02,0.00010136,2]
[351657546,1738692646537,-380.96,0.00010136,2]
[351657547,1738692646547,-500.0,0.00010136,2]
[351657548,1738692646557,-500.0,0.00010136,2]
[351657549,1738692646567,-431.66,0.00010136,2]
[351657550,1738692646576,-500.0,0.00010136,2]
[351657551,1738692646586,-256.47,0.00010136,2]
[351657552,1738692646595,-500.0,0.00010136,2]
[351657553,1738692646605,-639.3,0.00010136,2]
[351657554,1738692646614,-456.77,0.00010136,2]
[351657555,1738692646623,-500.0,0.00010136,2]
[351657556,1738692646633,-168.88,0.00010136,2]
[351657557,1738692646643,-339.4,0.00010136,2]
[351657558,1738692646652,-167.33,0.00010136,2]
[351657559,1738692646662,-500.0,0.00010136,2]
[351657560,1738692646672,-297.93,0.00010136,2]
[351657561,1738692646682,-429.16,0.00010136,2]
[351657562,1738692646691,-500.0,0.00010136,2]
[351657564,1738692646701,-500.0,0.00010136,2]
[351657566,1738692646711,-274.5,0.00010136,2]